[Event "Catalan Youth Championship 2024"]
[Site "Cambrils"]
[Date "2024.03.26"]
[Round "6.9"]
[White "Prada Villagrasa, Pau Manel"]
[Black "Molina Gil, Noah"]
[Result "1-0"]
[ECO "C42"]
[WhiteElo "2103"]
[BlackElo "1932"]
[Annotator "RC"]
[PlyCount "95"]
[EventDate "2024.03.13"]
[EventType "swiss"]
[EventCountry "ESP"]
[SourceTitle "playchess.com"]
[Source "ChessBase"]
[SourceQuality "1"]
[TimeControl "5400+30"]

1. e4 {[%emt 1:31:00]} e5 {[%emt 1:31:00]} 2. Nf3 {[%emt 0:00:30]} Nf6 {[%emt 0:00:30]} 3. Nxe5 {[%emt 0:00:30]} Nxe4 {[%emt 0:00:30]} 4. Qe2 {[%emt 0:00:30]} Qe7 {[%emt 0:00:30]} 5. Qxe4 {[%emt 0:00:30]} d6 {[%emt 0:00:30]} 6. d4 {[%emt 0:00:30]} dxe5 {[%emt 0:00:30]} 7. dxe5 {[%emt 0:00:30]} Nc6 {[%emt 0:00:30]} 8. Nc3 {[%emt 0:00:30]} Qxe5 {[%emt 0:00:30]} 9. Qxe5+ {[%emt 0:00:30]} Nxe5 {[%emt 0:00:30]} 10. Bf4 {[%emt 0:00:30]} Bd6 {[%emt 0:00:30]} 11. Bg3 {[%emt 0:00:30]} h5 {[%emt 0:00:30]} 12. O-O-O {[%emt 0:00:30]} f6 {[%emt 0:00:30]} 13. Nb5 {[%emt 0:00:30]} h4 {[%emt 0:00:30]} 14. Nxd6+ {[%emt 0:00:30]} cxd6 {[%emt 0:00:30]} 15. Bf4 {[%emt 0:00:30]} Ke7 {[%emt 0:00:30]} 16. Be2 {[%emt 0:00:30]} Bf5 {[%emt 0:00:30]} 17. Bd2 {[%emt 0:00:30]} Rac8 {[%emt 0:00:30]} 18. Bc3 {[%emt 0:00:30]} g5 {[%emt 0:00:30]} 19. Rhe1 {[%emt 0:00:30]} a6 {[%emt 0:00:30]} 20. g3 {[%emt 0:00:30]} hxg3 {[%emt 0:00:30]} 21. hxg3 {[%emt 0:00:30]} g4 {[%emt 0:00:30]} 22. Rd4 {[%emt 0:00:30]} Kd7 {[%emt 0:00:30]} 23. Rf4 {[%emt 0:00:30]} Rh5 {[%emt 0:00:30]} 24. Bxe5 {[%emt 0:00:30]} fxe5 {[%emt 0:00:30]} 25. Rxf5 {[%emt 0:00:30]} Rxf5 {[%emt 0:00:30]} 26. Bxg4 {[%emt 0:00:30]} Rcf8 {[%emt 0:00:30]} 27. Kd2 {[%emt 0:00:30]} Kc6 {[%emt 0:00:30]} 28. Bxf5 {[%emt 0:00:30]} Rxf5 {[%emt 0:00:30]} 29. Ke3 {[%emt 0:00:30]} Kd5 {[%emt 0:00:30]} 30. Rd1+ {[%emt 0:00:30]} Ke6 {[%emt 0:00:30]} 31. Rh1 {[%emt 0:00:30]} Kd5 {[%emt 0:00:30]} 32. f4 {[%emt 0:00:30]} Rf7 {[%emt 0:00:30]} 33. Rh5 {[%emt 0:00:30]} Rg7 {[%emt 0:00:30]} 34. Kf3 {[%emt 0:00:30]} Ke6 {[%emt 0:00:30]} 35. Rh6+ {[%emt 0:00:30]} Kd5 {[%emt 0:00:30]} 36. f5 {[%emt 0:00:30]} Rc7 {[%emt 0:00:30]} 37. c3 {[%emt 0:00:30]} e4+ {[%emt 0:00:30]} 38. Kf4 {[%emt 0:00:30]} Rc4 {[%emt 0:00:30]} 39. Re6 {[%emt 0:00:30]} b5 {[%emt 0:00:30]} 40. Re7 {[%emt 0:00:30]} b4 {[%emt 0:00:30]} 41. f6 {[%emt 0:00:30]} bxc3 {[%emt 0:00:30]} 42. bxc3 {[%emt 0:00:30]} Rxc3 {[%emt 0:00:30]} 43. Rxe4 {[%emt 0:00:30]} Rc1 {[%emt 0:00:30]} 44. Re7 {[%emt 0:00:30]} Kc6 {[%emt 0:00:30]} 45. f7 {[%emt 0:00:30]} d5 {[%emt 0:00:30]} 46. Re3 {[%emt 0:00:30]} Rc4+ {[%emt 0:00:30]} 47. Kf5 {[%emt 0:00:30]} Rc1 {[%emt 0:00:30]} 48. Rf3 {[%emt 0:00:30]} 1-0

[Event "Catalan Youth Championship 2024"]
[Site "Cambrils"]
[Date "2024.03.26"]
[Round "6.10"]
[White "Mallorqui Llop, Marc"]
[Black "Uber Gracia, Hugo"]
[Result "0-1"]
[ECO "B23"]
[WhiteElo "1874"]
[BlackElo "2237"]
[Annotator "RC"]
[PlyCount "140"]
[EventDate "2024.03.13"]
[EventType "swiss"]
[EventCountry "ESP"]
[SourceTitle "playchess.com"]
[Source "ChessBase"]
[SourceQuality "1"]
[TimeControl "5400+30"]

1. e4 {[%emt 0:00:06]} c5 {[%emt 0:00:08]} 2. Nc3 {[%emt 0:00:10]} e6 {[%emt 0:00:11]} 3. f4 {[%emt 0:00:12]} d5 {[%emt 0:00:09]} 4. Bb5+ {[%emt 0:00:46]} Bd7 {[%emt 0:01:01]} 5. Bxd7+ {[%emt 0:00:27]} Qxd7 {[%emt 1:31:31]} 6. d3 {[%emt 0:02:20]} Nc6 {[%emt 0:00:00]} 7. Nf3 {[%emt 0:00:42]} Nge7 {[%emt 0:00:00]} 8. O-O {[%emt 0:00:37]} O-O-O {[%emt 0:00:00]} 9. Bd2 {[%emt 0:10:40]} f6 {[%emt 0:00:00]} 10. a3 {[%emt 0:07:58]} Nd4 {[%emt 0:02:30]} 11. exd5 {[%emt 0:04:02]} Nxf3+ {[%emt 0:00:00]} 12. Qxf3 {[%emt 0:00:58]} exd5 {[%emt 0:00:00]} 13. b4 {[%emt 0:05:27]} Nf5 {[%emt 0:00:00]} 14. Ne2 {[%emt 0:06:45]} h5 {[%emt 0:02:00]} 15. Be3 {[%emt 0:56:50]} Nxe3 {[%emt 0:00:00]} 16. Qxe3 {[%emt 0:00:00]} Re8 {[%emt 0:01:00]} 17. Qf2 {[%emt 0:01:00]} b6 {[%emt 0:00:00]} 18. c3 {[%emt 0:00:30]} Bd6 {[%emt 0:00:00]} 19. Qf3 {[%emt 0:00:30]} g5 {[%emt 0:00:00]} 20. Rae1 {[%emt 0:00:00]} cxb4 {[%emt 0:02:00]} 21. cxb4 {[%emt 0:00:00]} g4 {[%emt 0:00:30]} 22. Rc1+ {[%emt 0:01:30]} Kb8 {[%emt 0:00:30]} 23. Qf2 {[%emt 0:00:00]} h4 {[%emt 0:00:00]} 24. Nd4 {[%emt 0:00:00]} h3 {[%emt 0:00:00]} 25. g3 {[%emt 0:00:00]} Rc8 {[%emt 0:00:00]} 26. Qd2 {[%emt 0:02:00]} Kb7 {[%emt 0:00:00]} 27. Rxc8 {[%emt 0:00:00]} Rxc8 {[%emt 0:00:00]} 28. Rc1 {[%emt 0:00:00]} a5 {[%emt 0:00:00]} 29. Kf1 {[%emt 0:00:00]} Rxc1+ {[%emt 0:00:00]} 30. Qxc1 {[%emt 0:00:00]} axb4 {[%emt 0:00:00]} 31. axb4 {[%emt 0:00:00]} Bxb4 {[%emt 0:00:00]} 32. Qb2 {[%emt 0:03:00]} Qe7 {[%emt 0:00:00]} 33. Nc2 {[%emt 0:00:00]} Bc5 {[%emt 0:00:00]} 34. Qb3 {[%emt 0:00:00]} Qe6 {[%emt 0:00:19]} 35. d4 {[%emt 0:01:30]} Be7 {[%emt 0:02:23]} 36. Ne3 {[%emt 0:00:00]} Kb8 {[%emt 0:00:20]} 37. Nxd5 {[%emt 0:00:00]} Bd8 {[%emt 0:00:08]} 38. Qb5 {[%emt 0:01:30]} Kb7 {[%emt 0:01:49]} 39. Nb4 {[%emt 0:00:00]} Qe4 {[%emt 0:02:49]} 40. Qa6+ {[%emt 0:00:00]} Kb8 {[%emt 0:00:33]} 41. Qc4 {[%emt 0:00:00]} Qh1+ {[%emt 0:00:27]} 42. Ke2 {[%emt 0:00:19]} Qxh2+ {[%emt 0:00:11]} 43. Kd1 {[%emt 0:00:14]} Qh1+ {[%emt 0:00:47]} 44. Kd2 {[%emt 0:00:29]} Qg2+ {[%emt 0:00:06]} 45. Kd1 {[%emt 0:00:15]} Kb7 {[%emt 0:00:45]} 46. Qa6+ {[%emt 0:00:29]} Kb8 {[%emt 0:00:09]} 47. Qc4 {[%emt 0:00:04]} Kb7 {[%emt 0:00:06]} 48. Qa6+ {[%emt 0:00:04]} Kc7 {[%emt 0:00:24]} 49. Qc4+ {[%emt 0:00:56]} Kd6 {[%emt 0:02:14]} 50. Qc8 {[%emt 0:01:08]} Be7 {[%emt 0:00:00]} 51. Qb8+ {[%emt 0:00:49]} Ke6 {[%emt 0:01:00]} 52. Qg8+ {[%emt 0:00:18]} Kd7 {[%emt 0:00:00]} 53. Qxg4+ {[%emt 0:00:13]} Kc7 {[%emt 0:00:00]} 54. Na6+ {[%emt 0:00:19]} Kd6 {[%emt 0:00:24]} 55. Nb8 {[%emt 0:00:38]} Qb7 {[%emt 0:00:45]} 56. f5 {[%emt 0:00:28]} Kc7 {[%emt 0:00:42]} 57. Qxh3 {[%emt 0:01:16]} Kxb8 {[%emt 0:00:08]} 58. Qh8+ {[%emt 0:00:22]} Ka7 {[%emt 0:00:00]} 59. Qg8 {[%emt 0:00:19]} Qf3+ {[%emt 0:00:13]} 60. Kc2 {[%emt 0:00:40]} Qxf5+ {[%emt 0:00:06]} 61. Kd1 {[%emt 0:00:22]} Qd3+ {[%emt 0:00:10]} 62. Ke1 {[%emt 0:02:18]} Qxd4 {[%emt 0:00:25]} 63. Qa2+ {[%emt 0:00:00]} Kb7 {[%emt 0:00:09]} 64. Qg2+ {[%emt 0:00:00]} Kb8 {[%emt 0:00:06]} 65. Qa2 {[%emt 0:00:00]} Qe3+ {[%emt 0:00:27]} 66. Kf1 {[%emt 0:00:00]} Qf3+ {[%emt 0:03:55]} 67. Kg1 {[%emt 0:00:01]} Qxg3+ {[%emt 0:00:00]} 68. Kf1 {[%emt 0:00:22]} Qf3+ {[%emt 0:00:00]} 69. Kg1 {[%emt 0:00:06]} Bc5+ {[%emt 0:00:00]} 70. Kh2 {[%emt 0:00:08]} Qf2+ {[%emt 0:00:00]} 0-1

[Event "Catalan Youth Championship 2024"]
[Site "Cambrils"]
[Date "2024.03.26"]
[Round "6.11"]
[White "Villa Tornero, Alex"]
[Black "Marin Ripoll, Marti"]
[Result "1/2-1/2"]
[ECO "B50"]
[WhiteElo "2329"]
[BlackElo "1884"]
[Annotator "RC"]
[PlyCount "57"]
[EventDate "2024.03.13"]
[EventType "swiss"]
[EventCountry "ESP"]
[SourceTitle "playchess.com"]
[Source "ChessBase"]
[SourceQuality "1"]
[TimeControl "5400+30"]

1. e4 {[%emt 0:00:25]} c5 {[%emt 0:00:17]} 2. Nf3 {[%emt 0:00:07]} d6 {[%emt 0:00:17]} 3. c3 {[%emt 0:00:11]} Nf6 {[%emt 0:00:12]} 4. Be2 {[%emt 0:00:05]} g6 {[%emt 0:00:17]} 5. O-O {[%emt 0:00:08]} Bg7 {[%emt 0:00:06]} 6. Re1 {[%emt 0:00:03]} O-O {[%emt 0:00:24]} 7. Bf1 {[%emt 0:00:03]} Bg4 {[%emt 0:00:39]} 8. h3 {[%emt 0:00:08]} Bxf3 {[%emt 0:00:08]} 9. Qxf3 {[%emt 0:00:03]} Nc6 {[%emt 0:00:31]} 10. d3 {[%emt 0:01:32]} b5 {[%emt 0:01:27]} 11. Na3 {[%emt 0:04:38]} b4 {[%emt 0:06:41]} 12. Nc4 {[%emt 1:29:07]} Nd7 {[%emt 0:02:13]} 13. Bd2 {[%emt 0:00:00]} Nb6 {[%emt 0:03:02]} 14. Ne3 {[%emt 0:01:00]} Na4 {[%emt 0:11:43]} 15. e5 {[%emt 0:00:00]} Nxe5 {[%emt 0:05:43]} 16. Qd1 {[%emt 0:00:00]} bxc3 {[%emt 0:06:20]} 17. bxc3 {[%emt 0:00:00]} Nb6 {[%emt 0:00:37]} 18. a4 {[%emt 0:00:00]} Nc6 {[%emt 0:07:32]} 19. Qf3 {[%emt 0:00:00]} Rc8 {[%emt 0:03:05]} 20. h4 {[%emt 0:03:00]} h5 {[%emt 0:13:00]} 21. a5 {[%emt 0:00:00]} Nd7 {[%emt 0:00:17]} 22. Ra4 {[%emt 0:00:00]} Nf6 {[%emt 0:01:27]} 23. g4 {[%emt 0:00:00]} Ne5 {[%emt 0:02:49]} 24. Qg3 {[%emt 0:02:00]} Qd7 {[%emt 0:01:37]} 25. Rf4 {[%emt 0:00:30]} hxg4 {[%emt 0:32:36]} 26. Rxf6 {[%emt 0:00:00]} Bxf6 {[%emt 0:00:00]} 27. Be2 {[%emt 0:00:00]} Nf3+ {[%emt 0:01:00]} 28. Bxf3 {[%emt 0:00:00]} gxf3 {[%emt 0:00:00]} 29. h5 {[%emt 0:02:00]} 1/2-1/2

[Event "Catalan Youth Championship 2024"]
[Site "Cambrils"]
[Date "2024.03.26"]
[Round "6.12"]
[White "Mares, Mario Gabriel"]
[Black "Herman Gamazo, Isaac"]
[Result "1/2-1/2"]
[ECO "C29"]
[WhiteElo "1782"]
[BlackElo "2096"]
[Annotator "RC"]
[PlyCount "93"]
[EventDate "2024.03.13"]
[EventType "swiss"]
[EventCountry "ESP"]
[SourceTitle "playchess.com"]
[Source "ChessBase"]
[SourceQuality "1"]
[TimeControl "5400+30"]

1. e4 {[%emt 0:00:03]} e5 {[%emt 0:00:19]} 2. Nc3 {[%emt 0:00:08]} Nf6 {[%emt 0:02:53]} 3. f4 {[%emt 1:31:49]} exf4 {[%emt 1:28:48]} 4. e5 {[%emt 0:00:00]} Ng8 {[%emt 0:00:00]} 5. Nf3 {[%emt 0:00:00]} d5 {[%emt 0:00:00]} 6. d4 {[%emt 0:00:00]} Be6 {[%emt 0:00:00]} 7. Bxf4 {[%emt 0:00:00]} Ne7 {[%emt 0:02:00]} 8. Bd3 {[%emt 0:00:00]} Ng6 {[%emt 0:00:00]} 9. Be3 {[%emt 0:00:00]} Be7 {[%emt 0:01:00]} 10. Qd2 {[%emt 0:03:30]} Nd7 {[%emt 0:00:30]} 11. Ne2 {[%emt 0:00:00]} a6 {[%emt 0:00:00]} 12. a4 {[%emt 0:01:00]} b6 {[%emt 0:00:00]} 13. c3 {[%emt 0:00:30]} Ndf8 {[%emt 0:01:30]} 14. Nf4 {[%emt 0:00:00]} Nxf4 {[%emt 0:00:00]} 15. Bxf4 {[%emt 0:01:00]} c5 {[%emt 0:00:00]} 16. O-O {[%emt 0:00:30]} c4 {[%emt 0:00:00]} 17. Bc2 {[%emt 0:00:00]} Ng6 {[%emt 0:00:00]} 18. Be3 {[%emt 0:01:00]} O-O {[%emt 0:00:00]} 19. Rf2 {[%emt 0:00:00]} b5 {[%emt 0:03:00]} 20. Raf1 {[%emt 0:01:00]} Qd7 {[%emt 0:00:30]} 21. Qd1 {[%emt 0:00:30]} b4 {[%emt 0:00:30]} 22. cxb4 {[%emt 0:00:00]} Bxb4 {[%emt 0:00:30]} 23. h3 {[%emt 0:01:00]} Bf5 {[%emt 0:00:30]} 24. Bxf5 {[%emt 0:00:00]} Qxf5 {[%emt 0:00:30]} 25. Ng5 {[%emt 0:01:00]} Qd3 {[%emt 0:00:30]} 26. Qxd3 {[%emt 0:00:30]} cxd3 {[%emt 0:00:00]} 27. Bd2 {[%emt 0:00:30]} Rab8 {[%emt 0:00:00]} 28. Nf3 {[%emt 0:00:30]} f6 {[%emt 0:01:30]} 29. Bxb4 {[%emt 0:00:00]} Rxb4 {[%emt 0:00:00]} 30. exf6 {[%emt 0:00:00]} Rxf6 {[%emt 0:01:00]} 31. Rd2 {[%emt 0:00:00]} Nf4 {[%emt 0:00:30]} 32. g3 {[%emt 0:00:00]} Ne2+ {[%emt 0:00:00]} 33. Kg2 {[%emt 0:00:00]} Rg6 {[%emt 0:00:00]} 34. g4 {[%emt 0:00:00]} Rf6 {[%emt 0:01:30]} 35. a5 {[%emt 0:03:30]} Rc4 {[%emt 0:00:00]} 36. Ne1 {[%emt 0:00:30]} Nf4+ {[%emt 0:00:00]} 37. Kg3 {[%emt 0:00:00]} Rxd4 {[%emt 0:00:00]} 38. Rf3 {[%emt 0:01:00]} Ne2+ {[%emt 0:00:16]} 39. Kf2 {[%emt 0:00:00]} Rxf3+ {[%emt 0:00:45]} 40. Nxf3 {[%emt 0:01:00]} Rb4 {[%emt 0:01:59]} 41. Rxd3 {[%emt 0:00:00]} Rxb2 {[%emt 0:00:00]} 42. Ke3 {[%emt 0:01:00]} Ra2 {[%emt 0:00:06]} 43. Rxd5 {[%emt 0:00:30]} Nc3 {[%emt 0:00:32]} 44. Rc5 {[%emt 0:00:00]} Nb5 {[%emt 0:00:44]} 45. Ne5 {[%emt 0:00:00]} Kf8 {[%emt 0:00:23]} 46. Nc4 {[%emt 0:00:00]} Rc2 {[%emt 0:00:40]} 47. Ke4 {[%emt 0:02:00]} 1/2-1/2

[Event "Catalan Youth Championship 2024"]
[Site "Cambrils"]
[Date "2024.03.26"]
[Round "6.13"]
[White "Salinas Tomas, Daniel"]
[Black "Sviridenko, Yaroslav"]
[Result "1-0"]
[ECO "D30"]
[WhiteElo "2386"]
[BlackElo "1961"]
[Annotator "RC"]
[PlyCount "131"]
[EventDate "2024.03.13"]
[EventType "swiss"]
[EventCountry "ESP"]
[SourceTitle "playchess.com"]
[Source "ChessBase"]
[SourceQuality "1"]
[TimeControl "5400+30"]

1. Nf3 {[%emt 0:00:07]} Nf6 {[%emt 0:00:05]} 2. g3 {[%emt 0:00:05]} d5 {[%emt 0:00:19]} 3. Bg2 {[%emt 0:00:06]} c5 {[%emt 0:00:14]} 4. O-O {[%emt 0:00:08]} h6 {[%emt 0:02:05]} 5. c4 {[%emt 0:00:47]} e6 {[%emt 0:00:40]} 6. d4 {[%emt 0:01:05]} Nc6 {[%emt 0:02:09]} 7. cxd5 {[%emt 0:10:05]} exd5 {[%emt 0:00:07]} 8. a3 {[%emt 0:02:05]} Be6 {[%emt 0:05:32]} 9. dxc5 {[%emt 0:07:36]} Bxc5 {[%emt 0:00:10]} 10. b4 {[%emt 0:00:04]} Be7 {[%emt 0:04:58]} 11. Bb2 {[%emt 0:02:20]} O-O {[%emt 0:00:44]} 12. Nbd2 {[%emt 0:02:57]} a6 {[%emt 0:10:06]} 13. Nb3 {[%emt 0:00:37]} Qd7 {[%emt 0:08:18]} 14. Nfd4 {[%emt 0:06:04]} Rac8 {[%emt 0:04:42]} 15. Nxe6 {[%emt 0:15:31]} Qxe6 {[%emt 0:00:20]} 16. Bxf6 {[%emt 0:02:12]} Bxf6 {[%emt 0:00:39]} 17. Bxd5 {[%emt 0:01:56]} Qe7 {[%emt 0:07:04]} 18. Ra2 {[%emt 0:00:42]} b6 {[%emt 0:01:19]} 19. Qd3 {[%emt 0:03:55]} a5 {[%emt 0:00:22]} 20. bxa5 {[%emt 0:16:05]} Nxa5 {[%emt 0:02:01]} 21. Qb5 {[%emt 0:04:48]} Rfd8 {[%emt 0:02:56]} 22. Rd1 {[%emt 0:01:26]} Nxb3 {[%emt 0:05:11]} 23. Qxb3 {[%emt 0:00:27]} Rc3 {[%emt 0:05:38]} 24. Qb4 {[%emt 0:04:44]} Qc7 {[%emt 0:05:25]} 25. a4 {[%emt 0:09:44]} h5 {[%emt 0:05:21]} 26. Rad2 {[%emt 0:00:24]} h4 {[%emt 0:01:17]} 27. Qe4 {[%emt 0:00:25]} hxg3 {[%emt 0:01:14]} 28. hxg3 {[%emt 0:00:04]} Be7 {[%emt 0:03:46]} 29. Rd3 {[%emt 0:00:45]} Rxd3 {[%emt 0:01:46]} 30. Rxd3 {[%emt 0:00:01]} Bc5 {[%emt 0:01:11]} 31. Kg2 {[%emt 0:00:11]} Qe7 {[%emt 0:01:26]} 32. Qxe7 {[%emt 0:01:10]} Bxe7 {[%emt 0:00:08]} 33. e4 {[%emt 0:00:15]} Kf8 {[%emt 0:01:25]} 34. Rc3 {[%emt 0:00:55]} Rd7 {[%emt 0:02:06]} 35. Rc8+ {[%emt 0:00:59]} Bd8 {[%emt 0:00:25]} 36. Ra8 {[%emt 0:00:37]} Ke7 {[%emt 0:00:35]} 37. Kf3 {[%emt 0:00:48]} f5 {[%emt 0:00:55]} 38. Ke3 {[%emt 0:00:57]} fxe4 {[%emt 0:00:28]} 39. Kxe4 {[%emt 0:00:32]} Kd6 {[%emt 0:02:33]} 40. Bc4 {[%emt 0:00:26]} Bf6 {[%emt 0:00:57]} 41. Bb5 {[%emt 0:00:15]} Re7+ {[%emt 0:01:40]} 42. Kd3 {[%emt 0:00:14]} Kc5 {[%emt 0:00:43]} 43. Rc8+ {[%emt 0:00:16]} Kb4 {[%emt 0:00:23]} 44. Rc4+ {[%emt 0:00:31]} Ka5 {[%emt 0:00:29]} 45. f4 {[%emt 0:00:33]} Re1 {[%emt 0:00:42]} 46. g4 {[%emt 0:00:27]} Ba1 {[%emt 0:01:46]} 47. g5 {[%emt 0:00:24]} Bb2 {[%emt 0:01:17]} 48. Kd2 {[%emt 0:03:33]} Re7 {[%emt 0:00:27]} 49. Kd3 {[%emt 0:00:49]} Re1 {[%emt 0:00:22]} 50. Kc2 {[%emt 0:00:42]} Ba1 {[%emt 0:02:50]} 51. Kd2 {[%emt 0:01:44]} Re7 {[%emt 0:00:20]} 52. f5 {[%emt 0:00:49]} Bb2 {[%emt 0:01:04]} 53. Rf4 {[%emt 0:00:49]} Ba1 {[%emt 0:01:20]} 54. Kd3 {[%emt 0:00:09]} Bb2 {[%emt 0:01:58]} 55. Rf2 {[%emt 0:00:54]} Ba1 {[%emt 0:01:02]} 56. Kc4 {[%emt 0:00:08]} Re3 {[%emt 0:01:50]} 57. f6 {[%emt 0:00:38]} gxf6 {[%emt 0:02:18]} 58. gxf6 {[%emt 0:00:01]} Bxf6 {[%emt 0:00:21]} 59. Rxf6 {[%emt 0:00:09]} Rf3 {[%emt 0:00:07]} 60. Re6 {[%emt 0:00:19]} Re3 {[%emt 0:00:36]} 61. Kd5 {[%emt 0:00:05]} Rh3 {[%emt 0:00:49]} 62. Re7 {[%emt 0:00:50]} Rh5+ {[%emt 0:00:29]} 63. Kd6 {[%emt 0:00:30]} Rh6+ {[%emt 0:00:11]} 64. Kc7 {[%emt 0:00:13]} Rh1 {[%emt 0:00:09]} 65. Kb7 {[%emt 0:00:48]} Rh6 {[%emt 0:00:13]} 66. Re5 {[%emt 0:00:46]} 1-0

[Event "Catalan Youth Championship 2024"]
[Site "Cambrils"]
[Date "2024.03.26"]
[Round "6.14"]
[White "Anguera Staina, Maxim"]
[Black "Fernandez Climent, Albert"]
[Result "1-0"]
[ECO "A07"]
[WhiteElo "2020"]
[BlackElo "1978"]
[Annotator "RC"]
[PlyCount "69"]
[EventDate "2024.03.13"]
[EventType "swiss"]
[EventCountry "ESP"]
[SourceTitle "playchess.com"]
[Source "ChessBase"]
[SourceQuality "1"]
[TimeControl "5400+30"]

1. Nf3 {[%emt 0:00:53]} d5 2. g3 {[%emt 1:30:37]} Nf6 {[%emt 0:02:55]} 3. Bg2 {[%emt 0:00:30]} Bf5 {[%emt 0:03:11]} 4. O-O {[%emt 0:00:00]} e6 {[%emt 0:00:14]} 5. d3 {[%emt 0:00:00]} h6 {[%emt 0:01:10]} 6. b3 {[%emt 0:00:00]} a5 {[%emt 1:26:00]} 7. a3 {[%emt 0:02:00]} Be7 {[%emt 0:00:00]} 8. Nbd2 {[%emt 0:00:00]} O-O {[%emt 0:00:00]} 9. Bb2 {[%emt 0:01:00]} Nbd7 {[%emt 0:01:30]} 10. Re1 {[%emt 0:00:30]} Nc5 {[%emt 0:00:30]} 11. Ne5 {[%emt 0:00:00]} c6 {[%emt 0:00:00]} 12. e4 {[%emt 0:00:00]} dxe4 {[%emt 0:00:00]} 13. Nxe4 {[%emt 0:01:30]} Bxe4 {[%emt 0:00:00]} 14. dxe4 {[%emt 0:00:00]} Qxd1 {[%emt 0:00:00]} 15. Raxd1 {[%emt 0:00:00]} Rfd8 {[%emt 0:02:30]} 16. Rxd8+ {[%emt 0:00:00]} Rxd8 {[%emt 0:00:00]} 17. Nc4 {[%emt 0:02:00]} Bf8 {[%emt 0:01:00]} 18. e5 {[%emt 0:00:00]} Ne8 {[%emt 0:00:00]} 19. Nxa5 {[%emt 0:01:00]} Nc7 {[%emt 0:01:00]} 20. b4 {[%emt 0:00:30]} Ra8 {[%emt 0:00:30]} 21. Rb1 {[%emt 0:00:00]} Ra7 {[%emt 0:00:00]} 22. c4 {[%emt 0:00:00]} Nd3 {[%emt 0:00:00]} 23. Bc3 {[%emt 0:00:00]} b6 {[%emt 0:00:00]} 24. Rd1 {[%emt 0:00:00]} bxa5 {[%emt 0:01:20]} 25. Rxd3 {[%emt 0:00:00]} axb4 {[%emt 0:00:16]} 26. axb4 {[%emt 0:00:00]} Ra3 {[%emt 0:00:27]} 27. Bxc6 {[%emt 0:00:00]} Kh7 {[%emt 0:00:46]} 28. b5 {[%emt 0:04:00]} g6 {[%emt 0:00:31]} 29. Rf3 {[%emt 0:00:00]} Kg7 {[%emt 0:00:20]} 30. Bd4 {[%emt 0:00:00]} Ra4 {[%emt 0:00:20]} 31. b6 {[%emt 0:00:00]} Rxc4 {[%emt 0:00:05]} 32. bxc7 {[%emt 0:02:00]} Rc1+ {[%emt 0:00:37]} 33. Kg2 {[%emt 0:00:00]} Rxc6 {[%emt 0:00:29]} 34. Rc3 {[%emt 0:00:00]} Rxc3 {[%emt 0:00:15]} 35. Bxc3 {[%emt 0:00:00]} 1-0

[Event "Catalan Youth Championship 2024"]
[Site "Cambrils"]
[Date "2024.03.26"]
[Round "6.15"]
[White "Blasco Cardona, Pol"]
[Black "Montes Molina, Ivan"]
[Result "0-1"]
[ECO "D00"]
[WhiteElo "1966"]
[BlackElo "2100"]
[Annotator "RC"]
[PlyCount "70"]
[EventDate "2024.03.13"]
[EventType "swiss"]
[EventCountry "ESP"]
[SourceTitle "playchess.com"]
[Source "ChessBase"]
[SourceQuality "1"]
[TimeControl "5400+30"]

1. d4 {[%emt 0:00:02]} Nf6 {[%emt 0:00:27]} 2. Nc3 {[%emt 0:00:06]} d5 {[%emt 0:00:06]} 3. Bf4 {[%emt 0:00:06]} g6 {[%emt 0:00:05]} 4. e3 {[%emt 0:00:06]} Bg7 {[%emt 0:00:07]} 5. Nb5 {[%emt 0:00:30]} Na6 {[%emt 0:00:08]} 6. h3 {[%emt 0:00:19]} O-O {[%emt 0:00:06]} 7. Nf3 {[%emt 0:00:06]} Ne4 {[%emt 0:00:11]} 8. Be2 {[%emt 0:00:28]} c6 {[%emt 0:00:06]} 9. Nc3 {[%emt 0:00:04]} Qa5 {[%emt 0:00:07]} 10. O-O {[%emt 0:00:09]} Nxc3 {[%emt 0:00:06]} 11. bxc3 {[%emt 0:00:06]} Qxc3 {[%emt 0:00:15]} 12. Rb1 {[%emt 0:00:40]} c5 {[%emt 0:00:33]} 13. Rb3 {[%emt 0:00:41]} Qa5 {[%emt 0:00:14]} 14. c4 {[%emt 0:01:01]} cxd4 {[%emt 0:19:17]} 15. cxd5 {[%emt 0:04:34]} Qxd5 {[%emt 0:12:47]} 16. exd4 {[%emt 0:02:50]} Bd7 {[%emt 0:04:10]} 17. Qb1 {[%emt 0:25:59]} Bf5 {[%emt 0:09:00]} 18. Qb2 {[%emt 0:05:12]} Nc5 {[%emt 0:02:27]} 19. Rb5 {[%emt 0:22:34]} a6 {[%emt 0:06:20]} 20. Ra5 {[%emt 0:08:48]} b5 {[%emt 0:02:53]} 21. Qa3 {[%emt 0:03:05]} Ne6 {[%emt 0:17:55]} 22. Be3 {[%emt 0:03:41]} Qb7 {[%emt 0:01:57]} 23. Nd2 {[%emt 0:03:06]} Nxd4 {[%emt 0:08:02]} 24. Bxd4 {[%emt 0:02:11]} Bxd4 {[%emt 0:00:05]} 25. Bf3 {[%emt 0:00:15]} Qb6 {[%emt 0:00:25]} 26. Bxa8 {[%emt 0:00:19]} Rxa8 {[%emt 0:00:04]} 27. Qf3 {[%emt 0:09:05]} Rd8 {[%emt 0:00:35]} 28. Nb3 {[%emt 0:01:46]} Bb2 {[%emt 0:07:42]} 29. a4 {[%emt 0:01:01]} Be6 {[%emt 0:01:35]} 30. axb5 {[%emt 0:06:40]} Bxb3 {[%emt 0:00:23]} 31. Rxa6 {[%emt 0:00:00]} Qxb5 {[%emt 0:00:06]} 32. Ra8 {[%emt 0:00:00]} Rxa8 {[%emt 0:00:29]} 33. Qxa8+ {[%emt 0:00:00]} Kg7 {[%emt 0:00:02]} 34. Qe4 {[%emt 0:00:00]} e5 {[%emt 0:03:23]} 35. Rb1 {[%emt 0:00:00]} Ba2 {[%emt 0:00:23]} 0-1

[Event "Catalan Youth Championship 2024"]
[Site "Cambrils"]
[Date "2024.03.26"]
[Round "6.16"]
[White "Benseny Martinez, Guerau"]
[Black "Silva Cerda, Mark Valentin"]
[Result "1-0"]
[ECO "B23"]
[WhiteElo "1986"]
[BlackElo "1900"]
[Annotator "RC"]
[PlyCount "63"]
[EventDate "2024.03.13"]
[EventType "swiss"]
[EventCountry "ESP"]
[SourceTitle "playchess.com"]
[Source "ChessBase"]
[SourceQuality "1"]
[TimeControl "5400+30"]

1. e4 {[%emt 0:01:10]} c5 {[%emt 0:00:07]} 2. Nc3 {[%emt 0:00:15]} d6 {[%emt 0:00:24]} 3. d4 {[%emt 0:00:12]} cxd4 {[%emt 0:00:22]} 4. Qxd4 {[%emt 0:00:09]} Nc6 {[%emt 0:00:19]} 5. Qd2 {[%emt 0:00:11]} g6 {[%emt 0:00:17]} 6. b3 {[%emt 0:00:19]} Bh6 {[%emt 0:12:49]} 7. f4 {[%emt 0:00:14]} e5 {[%emt 0:00:15]} 8. g3 {[%emt 0:01:03]} Nf6 {[%emt 0:10:01]} 9. Bb2 {[%emt 0:00:45]} O-O {[%emt 0:04:10]} 10. O-O-O {[%emt 0:01:16]} Be6 {[%emt 0:00:27]} 11. Kb1 {[%emt 1:30:26]} a5 {[%emt 0:10:58]} 12. a4 {[%emt 0:00:30]} Nb4 {[%emt 0:56:21]} 13. Bh3 {[%emt 0:00:00]} Qc8 {[%emt 0:00:00]} 14. Bxe6 {[%emt 0:00:00]} Qxe6 {[%emt 0:00:00]} 15. Nf3 {[%emt 0:00:00]} Rfc8 {[%emt 0:00:00]} 16. Ng5 {[%emt 0:00:00]} Bxg5 {[%emt 0:00:00]} 17. fxg5 {[%emt 0:00:00]} Ne8 {[%emt 0:02:30]} 18. Rc1 {[%emt 0:03:00]} Nc7 {[%emt 0:00:00]} 19. Rhf1 {[%emt 0:00:30]} Qe7 {[%emt 0:00:00]} 20. Rcd1 {[%emt 0:00:30]} Rd8 {[%emt 0:00:13]} 21. Ba3 {[%emt 0:00:00]} b5 {[%emt 0:01:04]} 22. axb5 {[%emt 0:00:00]} Ne6 {[%emt 0:00:36]} 23. Na4 {[%emt 0:00:00]} d5 {[%emt 0:00:36]} 24. exd5 {[%emt 0:00:00]} Rab8 {[%emt 0:01:01]} 25. d6 {[%emt 0:00:00]} Qd7 {[%emt 0:00:30]} 26. c3 {[%emt 0:00:00]} Na6 {[%emt 0:00:00]} 27. c4 {[%emt 0:00:00]} Nd4 {[%emt 0:00:00]} 28. Qe3 {[%emt 0:00:00]} Re8 {[%emt 0:00:45]} 29. Nc3 {[%emt 0:00:00]} Nc7 {[%emt 0:00:44]} 30. dxc7 {[%emt 0:00:00]} Qxc7 {[%emt 0:00:21]} 31. Nd5 {[%emt 0:00:00]} Qb7 {[%emt 0:00:16]} 32. Nf6+ {[%emt 0:00:08]} 1-0